Cogmind - Beta 12 @@@ ROGUE MODE // 2023.11.24 @ 12:18:56 Player: Mozco Result: Destroyed by D-53 Grenadier with Mini Grenade Launcher Performance ------------- Evolutions (0) 0 Regions Visited (2) 400 Robots Destroyed (15) 75 Value Destroyed (373) 373 Prototype IDs (0) 0 Alien Tech Used (0) 0 Bonus (0) 0 TOTAL SCORE: 848 Bonus ------- None Cogmind --------- Core Integrity 0/250 Matter 300/300 Energy 250/250 System Corruption 0% Temperature Cool (0) Movement Core (200) Ox3 Location -10/Mines Parts ------- > --- POWER (1) -------- Ion Engine > --- PROPULSION (2) --- (None) > --- UTILITY (2) ------ Small Storage Unit Transport Network Coupler > --- WEAPON (2) ------- Mining Claw > --- INVENTORY (8) ---- Aluminum Leg Aluminum Leg Compact Wheel Heat Sink Large Storage Unit Assault Rifle Peak State ------------ > --- POWER ------------ Light Ion Engine > --- PROPULSION ------- Compact Wheel Compact Wheel > --- UTILITY ---------- Small Storage Unit Transport Network Coupler > --- WEAPON ----------- Mining Claw Mining Claw > --- INVENTORY -------- Ion Engine Aluminum Leg Aluminum Leg Wheel Wheel Flight Unit Heat Sink Assault Rifle [Rating: 7] Favorites ----------- Power Ion Engine Engine Ion Engine Propulsion Aluminum Leg Treads Light Treads Leg Aluminum Leg Wheel Compact Wheel Utility Small Storage Unit Storage Small Storage Unit Processor Transport Network Coupler Weapon Mining Claw Ballistic Gun Light Assault Rifle Slashing Weapon Mining Claw Build | -11 -10 -10 ------- Run | Jun Mat Min Slots Evolved . | . . . Power . | . . . Propulsion . | . . . Utility . | . . . Weapon . | . . . Parts Attached 21 | 6 12 3 Power 3 | 1 1 1 Engine 3 | 1 1 1 Core . | . . . Reactor . | . . . Propulsion 11 | 2 7 2 Treads 2 | . 2 . Leg 5 | . 3 2 Wheel 4 | 2 2 . Hover . | . . . Flight . | . . . Utility 2 | 1 1 . Device . | . . . Storage 1 | 1 . . Processor 1 | . 1 . Hackware . | . . . Protection . | . . . Artifact . | . . . Weapon 5 | 2 3 . Energy Gun . | . . . Energy Cannon . | . . . Ballistic Gun 2 | 2 . . Ballistic Cannon . | . . . Launcher . | . . . Special Weapon . | . . . Impact Weapon . | . . . Slashing Weapon 3 | . 3 . Piercing Weapon . | . . . Special Melee Weapon . | . . . Unidentified Prototypes . | . . . Parts Lost 8 | . 2 6 Power 2 | . 1 1 Propulsion 4 | . . 4 Utility . | . . . Weapon 2 | . 1 1 Highest Loss Streak 3 | . 2 3 To Critical Strikes . | . . . Average Slot Usage (%) 93 | . 92 95 Engine 13 | . 13 14 Treads 1 | . 1 . Leg 16 | . 14 25 Wheel 9 | . 11 . Storage 14 | . 14 14 Processor 10 | . 10 14 Ballistic Gun 5 | . 7 . Slashing Weapon 19 | . 18 26 Naked Turns . | . . . Heaviest Build 14 | 11 14 14 Greatest Support 40 | 20 40 20 Greatest Overweight (x) 1 | . . 1 Average Overweight (x) . | . . . Largest Inventory Capacity 8 | 8 8 8 Average Capacity 7 | 6 8 8 Most Carried 8 | 6 8 8 Average Carried 7 | 4 7 7 Final Capacity 8 | 8 8 8 Final Carried 8 | 6 8 6 Class Distribution -------------------- 100% | Mutant Dominant Class ---------------- Mutant | -10/Materials Mutant | -10/Mines Resources | -11 -10 -10 ----------- Run | Jun Mat Min Matter Collected 481 | 201 255 25 Remotely . | . . . Salvage Created 594 | . 503 91 Parts 31 | . 25 6 Haulers Intercepted 2 | . 2 . Recyclers Shooed . | . . . Parts Field Recycled . | . . . Retrieved Matter . | . . . Parts Self-Destructed . | . . . Prevented . | . . . Kills | -11 -10 -10 ------- Run | Jun Mat Min Combat Hostiles Destroyed 9 | . 7 2 Melee 6 | . 4 2 Guns 3 | . 3 . Classes Destroyed 5 | . 5 . Worker 2 | . 1 1 Hauler 2 | . 2 . Recycler 1 | . 1 . Operator 1 | . 1 . Grunt 9 | . 7 2 Best Kill Streak 3 | . 3 1 Combat Bots Only 2 | . 2 1 Max Kills in Single Turn 2 | . 2 1 Gunslinging 1 | . 1 . Exploded . | . . . Melee 1 | . 1 1 Uniques/NPCs Destroyed . | . . . Combat | -11 -10 -10 -------- Run | Jun Mat Min Damage Taken 1161 | . 471 690 Core 256 | . 67 189 Absorbed by Shields . | . . . Core Remaining (%) 100 | 100 . . Volleys Fired 19 | . 19 . Largest 2 | . 2 . Hottest 40 | . 40 . Shots Fired 38 | . 38 . Gun 38 | . 38 . Cannon . | . . . Launcher . | . . . Special . | . . . Kinetic 38 | . 38 . Thermal . | . . . Explosive . | . . . Electromagnetic . | . . . Robot Hit Streak 11 | . 11 . Robot Miss Streak 1 | . 1 . Penetration Max . | . . . Secondary Targets 1 | . 1 . Max Gunslinging Chain 1 | . 1 . Shots Hit Robots 60 | . 46 14 Core Hits 25 | . 21 4 Critical Kills . | . . . Critical Parts Destroyed . | . . . Critical Strikes . | . . . Melee Attacks 49 | . 32 17 Impact . | . . . Slashing 49 | . 32 17 Piercing . | . . . Sneak Attacks 7 | . 5 2 Combat Hostiles 1 | . 1 . Follow-up Attacks 6 | . 4 2 Damage Inflicted 1202 | . 829 373 Guns 319 | . 319 . Cannons . | . . . Explosions . | . . . Melee 883 | . 510 373 Ramming . | . . . Kinetic 319 | . 319 . Thermal . | . . . Explosive . | . . . Electromagnetic . | . . . Impact . | . . . Slashing 883 | . 510 373 Piercing . | . . . Highest Corruption . | . . . Average Corruption . | . . . Corruption Purged . | . . . Corruption Blocked . | . . . Overload Shots . | . . . Overflow Damage 14 | . . 14 Projectiles . | . . . Explosions . | . . . Melee 14 | . . 14 Knockbacks . | . . . Impact . | . . . Kinetic . | . . . Secondary . | . . . Self-Inflicted Damage . | . . . Shots . | . . . Rammed . | . . . Targets Rammed . | . . . Kicked . | . . . Crushed . | . . . Highest Temperature 22 | . 22 . Average Temperature 7 | . 7 . Received Heat Transfer 588 | . 300 288 Siege Activations . | . . . Robots Corrupted . | . . . Combat Hostiles . | . . . Parts Fried . | . . . Impact Corruptions . | . . . Robots Melted . | . . . Combat Hostiles . | . . . Parts Melted . | . . . Heat Transferred . | . . . Parts Sabotaged . | . . . Parts Stolen . | . . . Parts Stripped . | . . . Power Chain Reactions . | . . . Missiles Intercepted . | . . . Alert | -11 -10 -10 ------- Run | Jun Mat Min Peak Influence 229 | . 229 57 Initial 37 | . . 37 Average 91 | . 114 38 Maximum Alert Level 1 | . 1 . Low Security (%) 87 | 100 83 100 Level 1 12 | . 16 . Level 2 . | . . . Level 3 . | . . . Level 4 . | . . . Level 5 . | . . . High Security . | . . . Max Security . | . . . Squads Dispatched 2 | . 2 . Investigation 1 | . 1 . Extermination . | . . . Reinforcement 1 | . 1 . Assault . | . . . Garrison . | . . . Intercept . | . . . Searches Triggered . | . . . Construction Impeded . | . . . Haulers Reinforced . | . . . Active Scanning Responses . | . . . Cargo Convoy Interrupts . | . . . Stealth | -11 -10 -10 --------- Run | Jun Mat Min Distress Signals 2 | . 1 1 Communications Jammed . | . . . Distress Signals . | . . . Times Spotted 22 | . 17 5 Peak Tracking Total 3 | . 3 3 Tactical Retreats 3 | . 2 1 Traps | -11 -10 -10 ------- Run | Jun Mat Min Traps Triggered 1 | . 1 . Indirectly . | . . . Trap Hack Attempts . | . . . Triggered . | . . . Disarmed . | . . . Reprogrammed . | . . . Reused . | . . . Traps Extracted . | . . . Installed . | . . . Triggered . | . . . Machines | -11 -10 -10 ---------- Run | Jun Mat Min Machines Disabled . | . . . Max in Single Turn . | . . . Machines Repaired . | . . . Machines Sabotaged . | . . . Overloaded Fab Kills . | . . . Hacking | -11 -10 -10 --------- Run | Jun Mat Min Machines Accessed 4 | . 4 . Terminals 4 | . 4 . Fabricators . | . . . Repair Stations . | . . . Recycling Units . | . . . Scanalyzers . | . . . Garrison Access . | . . . Total Hacks 9 | . 9 . Successful 2 | . 2 . Failed 7 | . 7 . Catastrophic 2 | . 2 . Database Lockouts . | . . . Manual 6 | . 6 . Terminals 9 | . 9 . Fabricators . | . . . Repair Stations . | . . . Recycling Units . | . . . Scanalyzers . | . . . Garrison Access . | . . . Terminal Hacks 2 | . 2 . Record 1 | . 1 . Robot Analysis 1 | . 1 . Fabricator Hacks . | . . . Repair Station Hacks . | . . . Recycling Unit Hacks . | . . . Scanalyzer . | . . . Garrison Access Hacks . | . . . Unauthorized Hacks . | . . . Terminals . | . . . Fabricators . | . . . Repair Stations . | . . . Recycling Units . | . . . Scanalyzers . | . . . Garrison Access . | . . . Data Cores Recovered . | . . . Used . | . . . Hacking Detections 4 | . 4 . Full Trace Events . | . . . Feedback Events . | . . . Feedback Blocked . | . . . Robot Schematics Acquired . | . . . Robots Built . | . . . Authchips . | . . . Time . | . . . Total Robot Build Rating . | . . . Part Schematics Acquired . | . . . Parts Built . | . . . Authchips . | . . . Time . | . . . Total Part Build Rating . | . . . Parts Repaired . | . . . Time . | . . . Parts Recycled . | . . . Recycled Matter . | . . . Retrieved Matter . | . . . Retrieved Components . | . . . Parts Scanalyzed . | . . . Part Schematics Acquired . | . . . Parts Damaged . | . . . Bothacking | -11 -10 -10 ------------ Run | Jun Mat Min Used RIF Installer . | . . . Robots Hacked . | . . . Non-combat . | . . . Combat . | . . . Robot Hacks Applied . | . . . Relay Couplers Released . | . . . Fabnet Peak Effective % . | . . . Robots Rewired . | . . . Allies Hacked . | . . . Hacks Repelled . | . . . Allies | -11 -10 -10 -------- Run | Jun Mat Min Total Allies . | . . . Largest Group . | . . . Highest-Rated Group . | . . . Highest-Rated Ally . | . . . Total Orders . | . . . Ally Attacks . | . . . Total Damage . | . . . Kills . | . . . Allies Corrupted . | . . . Allies Melted . | . . . Intel | -11 -10 -10 ------- Run | Jun Mat Min Robot Analysis Total 1 | . 1 . Derelict Logs Recovered . | . . . Drone Launches . | . . . Drone Recoveries . | . . . Exploration | -11 -10 -10 ------------- Run | Jun Mat Min Turns Passed 779 | 57 566 156 Spaces Moved 482 | 53 341 88 Core 2 | 2 . . Treads 5 | . 5 . Legs 269 | . 181 88 Wheels 206 | 51 155 . Hover . | . . . Flight . | . . . Fastest Speed 50 | 50 80 120 Average Speed 107 | 78 107 123 Slowest Speed 190 | 80 160 190 Overloaded Moves . | . . . Propulsion Burnouts . | . . . Robots Hopped . | . . . Cave-ins Triggered . | . . . Exploration Rate (%) 28 | 3 58 25 Regions Visited 2 Branch Regions 1 Pre-discovered Areas . | . . . Known Exits Taken . | . . . Unknown Exits Taken 2 | 1 1 . Scrap Searched . | . . . Spaces Dug . | . . . Terrain Destroyed . | . . . Melee . | . . . Projectile . | . . . AOE . | . . . Terrain Rammed . | . . . Walls Destroyed . | . . . Machines Disabled . | . . . Actions | -11 -10 -10 --------- Run | Jun Mat Min Total 618 | 64 448 106 Wait 36 | . 36 . Move 480 | 52 340 88 Hop . | . . . Pick Up 13 | 6 6 1 Fast Attach 12 | 6 6 . Attach 5 | . 2 3 Detach . | . . . Swap 4 | . 4 . Drop 8 | . 8 . Fire 19 | . 19 . Melee 41 | . 27 14 Ram . | . . . Kick . | . . . Crush . | . . . Escape Stasis . | . . . Rewire . | . . . Trap . | . . . Miscellaneous . | . . . Route ------- -11/Junkyard -10/Materials (discovered 2 exits: [*Mat] / [*Min]) -10/Mines History --------- Turn | Location | Event 6 | -11/Junkyard | Discovered new exit (range 15) 58 | -11/Junkyard | Entered Materials 292 | -10/Materials | Discovered new exit (range 16) 315 | -10/Materials | Build established: Mutant 574 | -10/Materials | Discovered new exit (range 15) 624 | -10/Materials | Entered Mines 704 | -10/Mines | Assembled infested the area 723 | -10/Mines | Core integrity fell below 50% 764 | -10/Mines | Lost 3 parts (1p2n) 774 | -10/Mines | Core integrity fell below 20% 780 | -10/Mines | Destroyed by D-53 Grenadier with Mini Grenade Launcher Last Messages --------------- 00737_ K-01 Serf collects debris. 00739_ G-47 Trooper destroyed. 00740_ C-30 ARC bursts open, deploying its payload. 00740_ D-53 Grenadier unfolds itself. 00740_ R-06 Scavenger collects Aluminum Leg. 00741_ K-01 Serf collects debris. 00742_ Acquired 25 matter. 00744_ K-01 Serf collects debris. 00744_ Acquired Aluminum Leg. 00745_ Sneak attack on R-06 Scavenger. 00745_ Destroyed Com. Wheel. 00745_ K-01 Serf collects debris. 00768_ G-34 Mercenary destroyed. 00768_ Mining Claw destroyed. 00768_ Aluminum Leg destroyed. 00768_ K-01 Serf destroyed. 00770_ K-01 Serf collects debris. 00771_ K-01 Serf destroyed. 00776_ The unstable cave ceiling collapses. 00780_ Aluminum Leg destroyed. Map ----- +----------------------------------------------------+ | ?????????????????????????????????????????????????? | | ?????????????????????????????????????????????????? | | ?????????????????????????????????????????????????? | | ?????????????????????????????????????????????????? | | ?????????????????????????????????????????????????? | | ?????????????????????????????????????????????????? | | ?????????????????????????????????????????????????? | | ?????????????????????????????????????????????????? | | ?????????????????????????????????????????????????? | | ?????????????????????????????????????????????????? | | ?????????????????????????????????????????????????? | | ?????????????????????????????????????????????????? | | ????????????????????????????????? #??????????????? | | ????????????????????????????????? ##?????????????? | | ?????????????????????????####??? ##????????????? | | ????????????????????????? #??# ##???????????? | | ????????????????????????? #?# #???????????? | | ?????????????????????????# ## % ???????????? | | ?????????????????????????# # ????????????? | | ?????????????????????##### ??????????????? | | ????????????????????## # dd????????????????? | | ????????????????????# * #?????????????????? | | ????????????????????# #??????????????????? | | ????????????????????# # = #???????????????????? | | ????????????????????# = ##??????????????????? | | ????????????????????# @ #??????????????????? | | ??????????????????## ##??????????????????? | | ?????????????????## #???????????????????? | | ????????????????## ###???????????????????? | | ????????????????# #????????????????????? | | ???????????????## #????????????????????? | | ?????????????### ##????????????????????? | | ????????????## ##?????????????????????? | | ????????????# ## #??????????????????????? | | ????????????# #?## ##??????????????????????? | | ????????????# ##?## #???????????????????????? | | ####????????# #### #???????????????????????? | | # #????????## #???????????????????????? | | # ########### #???????????????????????? | | # =% ## ##???????????????????????? | | # ####### ## ##????????????????????????? | | #?????# ##?????????????????????????? | | ## ##????# ##??????????????????????????? | | ?## ###??###### ####???????????????????????????? | | ??# ##??????####??????????????????????????????? | | ??# ##???????????????????????????????????????? | | ??# ##???#??????????????????????????????????? | | ??# ## ##?????????????????????????????????? | | ??# #?????????????????????????????????? | | ??# ##?????????????????????????????????? | +----------------------------------------------------+ Best States ------------- Heat Dissipation 25 Energy Generation 10 Energy Capacity 250 Matter Stores 300 Matter Capacity 300 Sight Range 16 Terrain Scan Density 10 Evasion (%) 55 Recoil Reduction 2 Item Schematics ----------------- None Robot Schematics ------------------ None Fabricated ------------ Nothing Alien Tech Used ----------------- None Achievements -------------- None Challenges ------------ None Game ------ Seed AutogunPortableTerrabomb Manual? 0 Play Time 00:11:21 Cumulative 51.7 hours Start 2023.11.24 @ 12:08:11 End 2023.11.24 @ 12:18:56 Sessions 1 Manual Loads 0 Difficulty Rogue Special Mode None Game No. 51 Rogue 48 Adventurer 3 Explorer 0 Win Type - Total 0 Types 0/0/0/0/0/0/0/0/0 Lore% 51 Gallery% 49 Achievement% 41 Wizard Run 0 Options --------- ASCII 0 Keyboard 0 Movement Mouse Keybinds 0 Fullscreen 2 Font 18/SmallcapsGlow Map View 76x50 Tactical HUD 1 Map Filters NONE Filters NONE Steam 1 RUN: 13b18280-643f-46fc-8853-f9ecc78d6316